bitfinex/quotes_ETHUSD_20250222
["timestamp","ask_amount","ask_price","bid_price","bid_amount"]
[1740240680080,3.58797,2787.1,2786.7,0.0672642]
[1740240680392,1.06839699,2787.6,2787.1,3.58783]
[1740240680569,4.34995,2787.6,2787.2,0.06685389]
[1740240680776,4.76987867,2788.1,2787.2,5.45685389]
[1740240680777,3.0,2787.7,2787.2,5.45685389]
[1740240681295,3.58738,2787.6,2787.2,5.45685389]
[1740240681695,4.13694,2787.9,2787.4,3.58755]
[1740240681881,1.0330205,2788.3,2787.4,5.39]
[1740240682068,4.34906,2788.3,2787.6,3.58724]
[1740240682395,3.58591,2788.7,2788.1,3.58663]
[1740240682567,7.1719,2788.7,2788.2,0.06592672]
[1740240682768,3.58641,2788.3,2788.2,0.06592672]
[1740240682968,8.257651,2788.3,2788.2,6.72e-06]
[1740240683186,3.58667,2788.1,2787.0,6.1883]
[1740240683384,3.58667,2788.1,2787.1,0.06416132]
[1740240683385,3.58764,2787.4,2787.1,0.06416132]
[1740240683558,3.58783,2787.2,2787.1,0.06416132]
[1740240684571,3.5877,2787.3,2787.1,0.06416132]
[1740240685061,0.30657595,2787.2,2787.1,3.65211132]
[1740240685293,0.30657595,2787.2,2787.1,19.31878044]
[1740240686002,3.5872,2787.7,2787.1,19.31878044]
[1740240686197,3.5872,2787.7,2787.1,18.71651132]
[1740240686198,3.58728,2787.7,2787.1,18.71651132]
[1740240686401,3.58728,2787.7,2787.1,15.12856132]
[1740240686402,3.58753,2787.5,2787.1,15.12856132]
[1740240686707,7.17453,2787.7,2787.1,18.71651132]
[1740240686858,3.58739,2787.6,2787.1,17.94202132]
[1740240687058,3.58783,2787.2,2787.1,14.35416132]
[1740240687258,3.58758,2787.4,2787.1,14.35416132]
[1740240687525,0.79809335,2787.6,2787.1,14.35416132]
[1740240687727,3.58783,2787.2,2787.1,0.06416132]
[1740240687860,3.95558076,2787.2,2787.1,0.06416132]
[1740240688062,6.58808,2787.0,2786.9,5.39]
[1740240689127,7.38617335,2787.0,2786.9,5.39]
[1740240689413,3.58847,2786.7,2786.6,7.326]
[1740240689586,0.55,2786.9,2786.4,3.58882]
[1740240689759,3.58834,2786.8,2786.3,5.5386362]
[1740240690065,0.79809335,2787.0,2786.8,3.5883]
[1740240690269,0.7681,2787.4,2787.1,3.58795]
[1740240690511,3.5874,2787.6,2787.0,3.58799]
[1740240690705,6.58749,2787.5,2787.2,0.06347581]
[1740240691010,3.58778,2787.3,2786.8,5.39]
[1740240691302,3.58821,2786.9,2786.8,5.39]
[1740240691934,6.58821,2786.9,2786.8,5.39]
[1740240692099,7.17762,2786.5,2786.3,0.1486362]
[1740240692294,3.58886,2786.4,2786.3,0.1486362]
[1740240692493,4.13886,2786.4,2786.3,0.1486362]
[1740240692935,4.93737239,2786.4,2786.3,0.1486362]
[1740240693121,12.86520701,2786.4,2786.3,0.1486362]
[1740240693509,0.7681,2785.6,2784.9,5.39]
[1740240693831,3.0,2785.6,2785.1,3.59047]
[1740240694040,0.79851239,2785.5,2785.1,3.59047]
[1740240694336,0.79851239,2785.5,2784.9,5.39]
[1740240694507,0.79851239,2785.5,2785.1,3.59048]
[1740240694705,0.79851239,2785.5,2785.0,7.18111]
[1740240694893,0.79851239,2785.5,2785.4,3.59014]
[1740240695093,0.79851239,2785.5,2785.4,5.39]
[1740240695339,0.79851239,2785.5,2785.4,9.74814]
[1740240697338,3.5887,2786.6,2785.9,3.5894]
[1740240697535,2.76831022,2787.3,2786.4,3.58877]
[1740240697735,3.58821,2786.9,2786.3,3.58893]
[1740240697900,7.17653,2786.9,2786.3,3.58893]
[1740240698102,3.58821,2786.9,2786.1,8.97919]
[1740240698302,3.58847,2786.7,2786.1,12.56836]
[1740240698635,3.58847,2786.7,2786.2,3.5891]
[1740240698812,3.0,2786.8,2786.1,8.97916]
[1740240699009,3.58836,2786.8,2786.1,8.97916]
[1740240699369,3.58816,2787.0,2786.5,3.58872]
[1740240699510,3.58822,2786.9,2786.3,7.17781]
[1740240699708,3.58816,2787.0,2786.4,3.58885]
[1740240699709,3.0,2786.8,2786.4,3.58885]
[1740240699903,3.0,2786.8,2786.3,3.5889]
[1740240700109,3.58836,2786.8,2786.3,3.5889]
[1740240700342,3.0,2786.8,2786.3,3.5889]
[1740240700559,3.0,2786.8,2786.2,5.39]
[1740240700716,3.0,2786.8,2786.0,9.668]
[1740240700717,0.7681,2787.3,2786.9,3.5882]
[1740240700923,3.58758,2787.4,2786.9,3.5882]
[1740240701106,1.84684,2787.7,2786.9,5.39]
[1740240701307,3.2541,2788.3,2786.7,0.768]
[1740240701308,0.7681,2788.3,2787.4,3.58756]
[1740240701608,0.7681,2788.3,2786.8,4.35626]
[1740240701609,3.58751,2787.5,2786.8,4.35626]
[1740240701807,3.58751,2787.5,2786.8,4.791866]
[1740240702040,3.58739,2787.6,2787.0,3.58808]
[1740240702224,3.58762,2787.4,2786.8,4.35624]
[1740240702418,0.55,2787.6,2786.3,1.665918]
[1740240702619,3.58843,2786.8,2786.3,0.768]
[1740240702844,0.7681,2787.1,2786.5,3.58862]
[1740240703046,7.17707,2786.7,2786.4,0.05937776]
[1740240703250,3.5885,2786.7,2786.6,0.05893138]
[1740240703422,3.5885,2786.7,2786.5,0.05901347]
[1740240703622,3.5885,2786.7,2786.2,3.58904]
[1740240703819,3.5885,2786.7,2786.3,0.05945986]
[1740240704038,3.5885,2786.7,2785.8,4.35756]
[1740240704039,3.5888,2786.5,2785.8,4.35752]
[1740240704323,3.58905,2786.3,2785.8,0.768]
[1740240704522,3.58921,2786.2,2785.9,0.0597883]
[1740240704739,3.58925,2786.1,2785.9,0.0597883]
[1740240704933,3.58937,2786.0,2785.9,0.0597883]
[1740240705360,3.58937,2786.0,2785.3,3.5902]
[1740240705574,3.58937,2786.0,2785.4,3.59009]
[1740240705575,3.58944,2786.0,2785.4,3.59009]
[1740240705725,3.58944,2786.0,2785.4,3.65067047]
[1740240705926,3.58948,2786.0,2785.4,3.65067047]
[1740240706156,3.58948,2786.0,2785.4,0.06058047]
[1740240706337,0.358948,2786.0,2785.5,3.58993]
[1740240706536,0.358948,2786.0,2785.6,0.06041618]
[1740240706880,0.7681,2786.5,2785.1,3.0]
[1740240707086,3.58871,2786.6,2786.0,3.58929]
[1740240707285,3.58871,2786.6,2785.9,0.768]
[1740240707286,3.0,2786.7,2786.2,3.58902]
[1740240707448,3.58848,2786.7,2786.2,3.58903]
[1740240707648,4.35602,2787.2,2786.3,0.06026876]
[1740240707848,3.5881,2787.0,2786.5,3.58862]
[1740240708042,3.58822,2786.9,2786.3,3.5889]
[1740240708247,3.58822,2786.9,2786.6,0.05976296]
[1740240708447,7.023622,2787.1,2786.4,3.58884]
[1740240708741,3.58808,2787.1,2786.6,0.768]
[1740240708941,3.58783,2787.2,2786.6,4.35658]
[1740240709170,4.35545,2787.6,2787.0,3.588]
[1740240709485,4.54286623,2788.2,2787.1,0.05912369]
[1740240709660,3.58733,2787.6,2787.1,0.82712369]
[1740240709862,3.58733,2787.6,2787.1,0.768]
[1740240710155,3.58733,2787.6,2787.2,0.05904164]
[1740240710557,3.5877,2787.3,2787.2,0.05904164]
[1740240710773,3.58821,2787.0,2786.5,0.768]
[1740240710976,3.58856,2786.7,2786.6,0.05953402]
[1740240711144,3.58856,2786.7,2785.7,0.768]
[1740240711145,0.55,2786.6,2785.7,0.768]
[1740240711486,3.58873,2786.5,2785.8,0.05967211]
[1740240711686,3.545644,2786.6,2785.9,3.5895]
[1740240711859,7.134344,2786.6,2786.1,3.5892]
[1740240712240,7.134344,2786.6,2786.2,0.05934365]
[1740240712241,1.313744,2786.6,2786.2,0.05934365]
[1740240712446,4.134324,2786.6,2786.0,3.58925]
[1740240712677,4.134324,2786.6,2786.3,0.05926154]
[1740240712887,3.58874,2786.5,2786.2,0.768]
[1740240713087,3.58898,2786.3,2785.8,0.768]
[1740240713384,3.58937,2786.0,2785.8,0.768]
[1740240713585,3.58977,2785.7,2785.5,0.768]
[1740240713789,3.58977,2785.7,2784.9,4.35867]
[1740240713958,3.59002,2785.5,2784.9,7.94936]
[1740240714283,3.58898,2786.3,2785.2,3.59033]
[1740240714530,3.0,2786.3,2785.0,0.768]
[1740240714685,3.58951,2785.9,2785.2,3.59038]
[1740240715016,3.58991,2785.6,2785.0,4.3586]
[1740240715167,3.59014,2785.4,2785.0,0.768]
[1740240715366,3.5897,2785.8,2785.0,0.768]
[1740240715575,0.35897,2785.8,2785.4,3.59004]
[1740240715878,3.5892,2786.2,2785.0,4.35857]
[1740240715879,3.0,2786.2,2785.6,3.58977]
[1740240716097,3.58851,2786.7,2785.0,0.768]
[1740240716098,0.7681,2786.5,2785.0,0.768]
[1740240716267,3.0,2786.3,2785.8,4.3575]
[1740240716468,3.0,2786.3,2785.5,0.768]
[1740240716469,3.58971,2785.8,2785.5,0.768]
[1740240716664,0.55,2786.4,2784.7,8.098]
[1740240716665,3.58986,2785.7,2784.7,8.098]
[1740240716863,3.59092,2784.8,2784.7,7.33]
[1740240718085,6.59092,2784.8,2784.7,7.33]
[1740240718607,3.0,2784.8,2784.7,7.33]
[1740240718804,0.55,2785.2,2783.9,4.36001]
[1740240719010,3.0,2784.7,2784.2,3.59168]
[1740240719674,3.0,2784.7,2783.9,0.768]
[1740240719675,0.43181,2785.1,2783.9,0.768]
[1740240719879,0.43181,2785.1,2784.3,3.59152]
[1740240720199,0.43181,2785.1,2783.5,0.1486362]
[1740240720200,0.8347,2784.8,2783.5,0.1486362]
[1740240720365,0.55,2784.6,2783.7,0.02982493]
[1740240720696,0.8347,2785.3,2784.9,3.5907]
[1740240720896,0.8347,2785.7,2784.6,0.8104]
[1740240721113,0.8347,2785.7,2785.3,3.59018]
[1740240721313,3.58989,2785.6,2784.9,3.5907]
[1740240721610,3.59016,2785.4,2784.6,0.8104]
[1740240721776,3.59041,2785.2,2784.7,0.05772676]
[1740240721961,3.5907,2785.0,2784.7,0.05772676]
[1740240722162,3.59147,2784.4,2783.6,0.8104]
[1740240722366,3.59161,2784.3,2783.7,0.05854899]
[1740240722608,3.0,2784.2,2783.7,0.05854899]
[1740240722796,0.8347,2784.8,2783.8,3.59221]
[1740240722968,0.8347,2785.4,2784.6,3.59117]
[1740240723168,0.8347,2785.4,2784.5,0.8104]
[1740240723169,3.59068,2785.0,2784.7,0.05772676]
[1740240723492,0.8347,2785.4,2784.1,0.8104]
[1740240723806,0.8347,2785.8,2785.3,7.18031]
[1740240723979,0.8347,2785.8,2784.9,0.8104]
[1740240723980,3.59001,2785.5,2785.4,0.05715155]
[1740240724166,0.8347,2785.3,2784.4,7.335]
[1740240724367,3.59089,2784.9,2784.5,0.05789116]
[1740240724582,0.55,2785.0,2784.5,0.05789116]
[1740240725106,3.665001,2785.5,2784.5,0.05789116]
[1740240725107,7.96968,2784.6,2784.5,0.05789116]
[1740240725468,0.8285,2785.4,2783.6,0.799]
[1740240725695,0.8285,2785.4,2784.2,4.39059]
[1740240725896,0.56773662,2785.3,2784.3,3.59156]
[1740240726101,3.58992,2785.6,2785.0,3.59066]
[1740240726412,4.41774,2786.1,2785.5,3.58993]
[1740240726616,4.41774,2786.1,2785.6,0.05698726]
[1740240726774,3.58951,2785.9,2785.2,3.59027]
[1740240727108,3.5897,2785.8,2785.3,0.0572337]
[1740240727313,3.5899,2785.6,2785.3,0.0572337]
[1740240727611,0.8285,2786.1,2785.4,0.05715155]
[1740240727612,3.0,2785.7,2785.4,0.05715155]
[1740240727823,3.58976,2785.7,2784.8,0.799]
[1740240727989,4.54286623,2786.2,2784.9,0.05756238]
[1740240727990,3.59048,2785.2,2784.9,0.05756238]
[1740240728309,0.359048,2785.1,2784.5,4.41449]
[1740240728516,0.8381,2785.5,2785.0,3.59063]
[1740240728676,4.42819,2785.5,2784.6,0.05738925]
[1740240728878,3.59028,2785.3,2785.1,0.05697833]
[1740240729101,4.42819,2785.5,2784.5,4.4144]
[1740240729102,3.8381,2785.5,2784.5,0.8232]
[1740240729434,7.18119,2785.1,2784.5,0.8232]
[1740240729634,4.9782,2785.5,2784.5,0.8232]
[1740240729802,3.59078,2785.0,2784.5,0.8232]
[1740240729998,3.59096,2784.8,2784.2,0.7987]
[1740240730203,3.59115,2784.7,2784.2,0.7987]
[1740240730796,3.59123,2784.6,2784.2,0.7987]
[1740240731000,3.59132,2784.5,2783.9,4.39077]
[1740240731199,4.028345,2784.7,2783.8,7.18424]
[1740240731401,3.59143,2784.4,2783.5,0.9473362]
[1740240731699,3.59203,2784.0,2783.5,0.9473362]
[1740240731899,3.59223,2783.8,2783.5,0.9473362]
[1740240732100,4.37273,2784.1,2783.5,0.9473362]
[1740240732547,4.005763,2784.3,2783.5,0.9473362]
[1740240732548,0.414143,2784.3,2783.5,0.9473362]
[1740240732838,4.3308,2784.5,2783.5,0.9473362]
[1740240733172,3.59211,2783.9,2783.5,0.9473362]
[1740240733299,3.59244,2783.7,2783.5,0.1486362]
[1740240733713,3.59212,2783.9,2783.5,0.1486362]
[1740240734043,3.59247,2783.6,2783.5,0.1486362]
[1740240734197,3.359247,2783.6,2783.5,0.1486362]
[1740240734398,0.7808,2784.2,2783.5,4.5398262]
[1740240734602,4.37262,2784.2,2783.5,4.5398662]
[1740240734797,3.59242,2783.7,2783.5,0.1486362]
[1740240735025,3.59247,2783.6,2783.5,0.1486362]
[1740240735198,6.59247,2783.6,2783.5,0.1486362]
[1740240735624,7.92327,2783.6,2783.5,0.1486362]
[1740240736751,3.7808,2783.6,2783.5,0.1486362]
[1740240736963,3.0,2783.6,2783.5,0.1486362]
[1740240737132,7.14247,2783.6,2783.5,0.1486362]
[1740240737815,3.55,2783.6,2783.5,0.20488668]
[1740240738020,7.14247,2783.6,2783.5,0.20488668]
[1740240738461,3.55,2783.6,2783.5,0.20488668]
[1740240738623,7.14247,2783.6,2783.5,0.20488668]
[1740240739319,3.55,2783.6,2783.5,0.20488668]
[1740240739720,0.7808,2784.3,2783.5,3.79738668]
[1740240739936,0.7808,2784.3,2783.9,3.59201]
[1740240740219,0.7808,2784.7,2784.0,0.05693756]
[1740240740463,4.37193,2784.7,2783.8,3.59208]
[1740240740764,3.59143,2784.4,2783.9,0.05701979]
[1740240740972,3.59138,2784.5,2783.9,0.05701979]
[1740240741169,3.5913,2784.5,2783.9,0.05701979]
[1740240741320,0.437193,2784.6,2783.9,0.05701979]
[1740240741524,0.437193,2784.6,2783.5,0.1486362]
[1740240741525,3.5919,2784.1,2783.5,0.1486362]
[1740240742047,3.59197,2784.0,2783.6,0.05726654]
[1740240742575,4.14215,2783.9,2783.6,0.05726654]
[1740240742745,1.139997,2784.0,2783.6,0.05726654]
[1740240742941,0.359197,2784.0,2783.6,0.05726654]
[1740240743166,3.0,2783.7,2783.6,0.05726654]
[1740240743468,0.359197,2784.0,2783.5,3.7411462]
[1740240743677,3.59178,2784.2,2783.6,3.65052204]
[1740240743832,3.0,2784.1,2783.6,0.05805204]
[1740240744031,7.37327,2783.6,2783.5,0.1486362]
[1740240744368,7.92327,2783.6,2783.5,0.1486362]
[1740240744889,3.0,2783.6,2783.5,0.1486362]
[1740240745046,7.801711,2783.6,2783.5,0.1486362]
[1740240746190,7.801711,2783.6,2783.5,0.20298167]
[1740240746481,3.659241,2783.6,2783.5,0.20298167]
[1740240746685,0.8343,2784.3,2783.5,0.20298167]
[1740240746874,3.0,2784.1,2783.5,0.20298167]
[1740240747075,3.59171,2784.2,2783.6,3.59245]
[1740240747286,3.59128,2784.6,2783.8,3.59217]
[1740240747442,3.59118,2784.6,2783.9,0.05399359]
[1740240747780,3.0,2784.5,2783.9,3.64602359]
[1740240748091,6.59137,2784.5,2783.9,3.64602359]
[1740240749062,6.59137,2784.5,2783.9,3.64600359]
[1740240749588,3.59089,2784.9,2784.0,0.8113]
[1740240749791,3.59068,2785.0,2784.2,3.5916]
[1740240750181,0.7847,2785.1,2784.4,3.59136]
[1740240750182,4.37531,2785.1,2784.4,3.59136]
[1740240750382,3.59074,2785.0,2784.4,3.59136]
[1740240750584,3.59083,2784.9,2784.5,0.0530353]
[1740240750793,0.359083,2784.8,2784.5,0.0530353]
[1740240750975,0.359083,2784.8,2784.2,3.59159]
[1740240751179,4.37534,2785.1,2784.6,0.05293786]
[1740240751364,4.37534,2785.1,2784.5,3.5913]
[1740240751564,4.37534,2785.1,2784.0,0.8113]
[1740240751565,3.55,2785.0,2784.7,0.05285566]
[1740240751905,0.79860769,2784.8,2784.2,3.59161]
[1740240752089,0.79860769,2784.8,2784.5,3.5913]
[1740240752291,0.79860769,2784.8,2784.6,0.05293786]
[1740240752601,0.79860769,2784.8,2784.7,3.59105]
[1740240752802,7.14105,2784.7,2784.6,0.05293786]
[1740240752969,6.59126,2784.6,2784.0,3.59194]
[1740240753163,3.59139,2784.5,2783.8,3.59211]
[1740240753375,7.1412,2784.6,2783.8,3.59213]
[1740240753710,0.7681,2784.6,2783.5,0.1486362]
[1740240753871,3.59272,2783.4,2783.0,0.7694]
[1740240754068,6.59272,2783.4,2782.7,7.339]
[1740240754303,7.14272,2783.4,2782.7,7.339]
[1740240754478,7.4498768,2783.4,2782.7,7.339]
[1740240755376,8.2179768,2783.4,2782.7,7.339]
[1740240755753,8.83684288,2783.4,2782.7,7.339]
[1740240756010,8.83684288,2783.4,2783.3,8.72e-06]
[1740240757869,9.11241138,2783.4,2783.3,8.72e-06]
[1740240758208,8.56241138,2783.4,2783.3,8.72e-06]
[1740240758587,3.3071568,2783.4,2783.3,8.72e-06]
[1740240758981,6.8998768,2783.4,2783.3,8.72e-06]
[1740240759194,3.3071568,2783.4,2783.3,8.72e-06]
[1740240759402,0.3071568,2783.4,2783.3,8.72e-06]
[1740240759598,0.3071568,2783.4,2783.3,3.59285872]
[1740240759997,0.3071568,2783.4,2783.3,5.08083559]
[1740240760821,4.3592,2784.7,2783.4,0.7694]
[1740240761024,4.3592,2784.7,2783.9,3.59202]
[1740240761025,0.55,2784.6,2783.9,3.59202]
[1740240761233,0.26382207,2784.8,2784.1,0.7694]
[1740240761435,0.7681,2785.0,2784.4,3.59143]
[1740240761589,3.59061,2785.1,2784.4,3.59143]
[1740240761787,3.59061,2785.1,2784.5,3.64557792]
[1740240762009,3.59061,2785.1,2784.5,0.05427792]
[1740240762229,4.83147286,2785.3,2784.5,5.44427792]
[1740240762429,1.24110286,2785.3,2784.8,3.59086]
[1740240762628,3.59077,2785.0,2784.5,5.44427792]
[1740240762790,3.59077,2785.0,2784.9,0.05394914]
[1740240763122,3.59064,2785.1,2784.9,0.05301927]
[1740240763335,3.59066,2785.0,2784.9,0.05301927]
[1740240763535,3.59079,2784.9,2784.5,5.39]
[1740240763736,3.55,2785.3,2784.5,5.39]
[1740240763737,7.14034,2785.3,2784.9,0.05301927]
[1740240763914,3.0,2785.1,2784.6,3.59117]
[1740240764232,3.0,2785.4,2784.8,0.7694]
[1740240764433,6.59023,2785.4,2784.8,0.7694]
[1740240764639,0.55,2785.3,2784.9,0.05301927]
[1740240764797,3.0,2785.4,2784.9,3.64380927]
[1740240765003,3.0,2785.4,2784.9,0.05301927]
[1740240765204,3.0,2785.2,2784.9,0.05301927]
[1740240766022,3.0,2785.3,2784.9,0.05301927]
[1740240766232,6.59029,2785.3,2784.9,0.05301927]
[1740240766521,3.59055,2785.1,2784.9,0.05301927]
[1740240766839,0.7681,2785.7,2784.9,0.05301927]
[1740240767135,3.59003,2785.5,2785.0,0.05293709]
[1740240767311,6.58991,2785.6,2785.0,0.05293709]
[1740240767507,3.59004,2785.5,2785.0,0.05293709]
[1740240767908,3.59015,2785.4,2785.0,0.00293709]
[1740240768115,3.59015,2785.4,2784.8,8.9809]
[1740240768116,3.59073,2785.0,2784.8,5.39]
[1740240768337,3.59079,2784.9,2784.8,5.39]
[1740240768538,3.59054,2785.1,2784.8,5.39]
[1740240768745,3.0,2785.3,2784.8,5.39]
[1740240768900,3.0,2785.3,2784.8,8.98087]
[1740240769237,3.5895,2785.9,2785.1,3.59042]
[1740240769446,3.5895,2785.9,2785.2,4.38528]
[1740240769613,0.7925,2786.0,2785.2,6.1849]
[1740240769811,3.58963,2785.8,2785.2,9.77522]
[1740240770013,3.58953,2785.9,2785.2,9.7752]
[1740240770417,3.5895,2785.9,2785.3,7.18045]
[1740240770618,3.5895,2785.9,2785.3,12.57045]
[1740240770842,3.58954,2785.9,2785.3,5.39]
[1740240771045,3.76636147,2786.3,2785.3,5.39]
[1740240771353,3.0,2785.9,2785.4,3.59007]
[1740240771537,3.0,2785.9,2785.4,3.59005]
[1740240771946,3.0,2785.9,2785.4,8.98005]
[1740240772143,3.58963,2785.8,2785.4,5.39]
[1740240772321,3.0,2785.9,2785.4,8.98004]
[1740240772842,3.0,2785.9,2785.5,3.59001]
[1740240773043,4.04516615,2786.2,2785.6,5.39]
[1740240773353,3.58947,2786.0,2785.6,5.39]
[1740240774159,0.40454361,2786.0,2785.6,5.39]
[1740240774332,3.58942,2786.0,2785.6,5.39]
[1740240774658,3.58937,2786.0,2785.6,5.39]
[1740240774861,3.58933,2786.1,2785.6,5.39]
[1740240775034,7.1787,2786.1,2785.6,5.39]
[1740240775231,3.58924,2786.1,2785.6,5.39]
[1740240775454,0.413924,2786.0,2785.6,5.39]
[1740240775637,3.58924,2786.1,2785.7,0.04861044]
[1740240775835,3.58963,2785.8,2785.7,5.43861044]
[1740240776161,3.58941,2786.0,2785.7,5.43861044]
[1740240776661,3.0,2786.2,2785.9,3.58947]
[1740240777173,0.76636147,2786.3,2786.1,3.58921]
[1740240777376,0.76636147,2786.3,2786.0,5.43836407]
[1740240777666,4.35544147,2786.3,2786.2,0.03117908]
[1740240777820,0.76636147,2786.3,2786.1,0.04806118]
[1740240778170,0.76636147,2786.3,2786.2,9.02648908]
[1740240778459,0.76636147,2786.3,2786.2,9.85868908]
[1740240778861,0.76636147,2786.3,2786.2,11.20346999]
[1740240779730,0.76636147,2786.3,2786.2,20.10346999]
[1740240780423,0.76636147,2786.3,2786.2,15.16957908]
[1740240780620,0.76636147,2786.3,2786.2,6.26957908]
[1740240780826,4.35534147,2786.3,2786.2,5.43737908]
[1740240781070,0.76636147,2786.3,2786.2,5.43737908]
[1740240781423,4.35534147,2786.3,2786.2,5.43737908]
[1740240784459,8.69864147,2786.3,2786.2,9.08e-06]
[1740240784619,8.69864147,2786.3,2786.2,4.54e-06]
[1740240784824,3.59014,2785.4,2785.3,5.39]
[1740240785157,3.59005,2785.5,2785.3,5.42946704]
[1740240785766,3.58959,2785.9,2785.3,5.42946704]
[1740240786010,3.58976,2785.7,2785.4,0.7984]
[1740240786417,0.76636147,2786.3,2785.8,3.58951]
[1740240786599,4.35539147,2786.3,2785.9,5.39]
[1740240786915,0.76636147,2786.3,2785.9,5.42938458]
[1740240787129,3.5892,2786.2,2785.9,5.42938458]
[1740240787277,0.76636147,2786.3,2785.9,5.42938458]
[1740240787611,0.76636147,2786.3,2786.2,4.38751]
[1740240787977,0.76636147,2786.3,2786.2,4.42651903]
[1740240788178,0.76636147,2786.3,2786.2,0.83740903]
[1740240789575,4.35534147,2786.3,2786.2,0.03900903]
[1740240790081,4.35534147,2786.3,2786.0,5.39]
[1740240790082,0.76636147,2786.3,2786.0,5.39]
[1740240790284,3.58911,2786.2,2786.1,0.03909113]
[1740240792098,3.58911,2786.2,2785.6,5.39]
[1740240792320,3.58976,2785.7,2785.6,5.39]
[1740240792606,3.58964,2785.8,2785.6,5.39]
[1740240793630,3.58976,2785.7,2785.6,5.39]
[1740240794122,3.58964,2785.8,2785.6,5.39]
[1740240794625,3.58976,2785.7,2785.6,5.39]
[1740240795524,3.58952,2785.9,2785.6,5.39]
[1740240795720,3.58976,2785.7,2785.6,5.39]
[1740240797078,3.89485054,2785.7,2785.6,5.39]
[1740240797481,3.59079,2784.9,2784.8,0.76907]
[1740240797723,3.59079,2784.9,2784.8,0.80912272]
[1740240798024,3.59067,2785.0,2784.8,0.80912272]
[1740240798183,3.59043,2785.2,2784.8,0.80912272]
[1740240798386,3.59055,2785.1,2784.8,0.80912272]
[1740240798623,8.0593038,2785.7,2784.8,0.80912272]
[1740240798810,3.89491054,2785.7,2784.9,3.59079]
[1740240799212,0.30509054,2785.0,2784.9,3.59079]
[1740240799398,0.30509054,2785.0,2784.9,9.66907]
[1740240800196,0.30509054,2785.0,2784.9,13.25986]
[1740240800406,0.30509054,2785.0,2784.9,15.678335]
[1740240800604,0.30509054,2785.0,2784.9,16.451935]
[1740240801420,0.76636147,2786.3,2785.4,0.7736]
[1740240801710,3.58977,2785.7,2785.5,0.76907]
[1740240802418,3.58989,2785.6,2785.5,0.76907]
[1740240802928,3.58977,2785.7,2785.5,0.76907]
[1740240803224,4.36637,2785.9,2785.5,0.76907]
[1740240803225,0.33572034,2785.6,2785.5,0.76907]
[1740240804025,3.58964,2785.8,2785.5,0.76907]
[1740240804332,3.58957,2785.9,2785.5,0.76907]
[1740240804657,3.58989,2785.6,2785.5,0.76907]
[1740240804872,3.58977,2785.7,2785.5,0.76907]
[1740240805015,3.58989,2785.6,2785.5,0.76907]
[1740240805515,3.58966,2785.8,2785.5,0.76907]
[1740240805961,3.58956,2785.9,2785.5,0.76907]
[1740240806117,3.58989,2785.6,2785.5,0.76907]
[1740240806740,6.58916,2786.2,2785.5,0.76907]
[1740240806929,3.58896,2786.4,2785.8,3.58955]
[1740240807132,3.58896,2786.4,2785.8,7.1791]
[1740240807329,4.44149,2786.8,2786.1,3.58912]
[1740240807330,4.44145,2786.8,2786.1,3.58912]
[1740240807542,3.58813,2787.0,2786.2,4.43751]
[1740240807747,0.8531,2787.6,2786.2,10.51747]
[1740240807955,3.58771,2787.3,2786.7,3.58836]
[1740240808264,3.58778,2787.3,2786.7,3.58836]
[1740240808466,3.58778,2787.3,2786.7,7.17675]
[1740240808760,3.58778,2787.3,2786.7,3.58836]
[1740240808935,3.58778,2787.3,2786.7,7.17672]
[1740240809137,3.58778,2787.3,2786.7,3.58836]
[1740240809428,4.44045,2787.6,2786.5,3.58865]
[1740240809643,3.58803,2787.1,2786.4,0.8484]
[1740240809835,3.58747,2787.5,2786.4,0.8484]
[1740240810014,3.5886,2786.6,2786.4,0.8484]
[1740240810219,3.58873,2786.5,2786.4,0.8484]
[1740240810529,3.58893,2786.4,2786.1,9.6735]
[1740240810738,3.805,2786.9,2786.1,9.6735]
[1740240810948,3.58854,2786.7,2786.1,9.6735]
[1740240811258,3.0,2787.0,2786.1,9.6735]
[1740240811448,3.58803,2787.1,2786.5,3.58868]
[1740240811650,0.805,2787.2,2786.3,3.58893]
[1740240811854,0.805,2787.2,2786.1,9.6735]
[1740240811855,3.58847,2786.7,2786.5,5.39]
[1740240812176,3.55,2787.5,2786.5,5.39]
[1740240812366,3.0,2787.1,2786.7,3.58835]
[1740240812517,3.0,2787.1,2786.5,5.39]
[1740240812518,3.58816,2787.0,2786.5,5.39]
[1740240812860,3.58842,2786.8,2786.6,0.04061731]
[1740240813271,3.58847,2786.7,2786.6,0.04061731]
[1740240813721,11.30286326,2786.7,2786.6,7.31e-06]
[1740240813927,3.5895,2785.9,2785.8,5.39]
[1740240814222,3.5895,2785.9,2785.8,5.43731123]
[1740240815265,4.39416,2786.2,2785.8,5.43731123]
[1740240815266,3.0,2786.3,2785.8,5.43731123]
[1740240815422,3.5895,2785.9,2785.8,5.43731123]
[1740240817271,3.5895,2785.9,2785.8,0.04731123]
[1740240817472,4.3945,2785.9,2785.8,0.04731123]
[1740240817970,3.58978,2785.7,2785.3,5.39]
[1740240818169,3.59014,2785.5,2785.3,5.39]
[1740240818946,3.59014,2785.4,2785.3,5.39]
[1740240819142,3.59014,2785.4,2784.7,3.59103]
[1740240819143,3.59048,2785.2,2785.0,5.39]
[1740240819348,3.59079,2784.9,2784.8,12.723]
[1740240820386,3.89253595,2784.9,2784.8,12.723]
[1740240820898,0.30174595,2784.9,2784.8,12.723]
[1740240821052,0.30174595,2784.9,2784.8,16.31392]
[1740240821246,0.30174595,2784.9,2784.8,27.977916]
[1740240821447,0.805,2786.2,2785.9,3.58942]
[1740240821674,4.49559539,2786.5,2784.8,23.95503502]
[1740240821675,0.90679539,2786.5,2785.2,4.3639]